fUST/lending_fUST_20250930
["ID","MTS","AMOUNT","RATE_DAILY","PERIOD"]
[388574840,1759244655371,-500.0,0.00019452,2]
[388574841,1759244655394,-500.0,0.00019473,2]
[388574842,1759244655417,-200.0,0.00019473,2]
[388574843,1759244655444,-500.0,0.00019473,2]
[388574844,1759244655466,-501.29297048,0.00019473,2]
[388574845,1759244655491,-500.0,0.00019473,2]
[388574846,1759244655514,-500.0,0.00019473,2]
[388574847,1759244655537,-500.0,0.00019725,2]
[388574848,1759244655560,-500.0,0.00019725,2]
[388574849,1759244655584,-500.0,0.00019725,2]
[388574850,1759244655607,-215.72790496,0.00019725,2]
[388574851,1759244655631,-730.0,0.00019725,2]
[388574852,1759244655654,-500.0,0.00019725,2]
[388574853,1759244655677,-1188.74,0.00019725,2]
[388574854,1759244655701,-679.82,0.00019725,2]
[388574855,1759244655724,-500.0,0.00019725,2]
[388574856,1759244655747,-500.0,0.00019725,2]
[388574857,1759244655771,-697.11,0.00019725,2]
[388574858,1759244655793,-500.0,0.00019725,2]
[388574859,1759244655816,-480.0,0.00019725,2]
[388574860,1759244655839,-500.0,0.00019725,2]
[388574861,1759244655862,-500.0,0.00019725,2]
[388574862,1759244655886,-500.0,0.00019725,2]
[388574863,1759244655908,-500.0,0.00019725,2]
[388574864,1759244655932,-500.0,0.00019725,2]
[388574865,1759244655957,-1106.9,0.00019725,2]
[388574866,1759244656095,-379.828545,0.00019725,2]
[388574867,1759244656120,-500.0,0.00019725,2]
[388574868,1759244656143,-500.0,0.00019725,2]
[388574869,1759244656167,-1321.17,0.00019725,2]
[388574870,1759244656191,-592.5,0.00019725,2]
[388574871,1759244656216,-1735.68,0.00019725,2]
[388574872,1759244656239,-500.0,0.00019725,2]
[388574873,1759244656262,-500.0,0.00019725,2]
[388574874,1759244656284,-500.0,0.00019725,2]
[388574875,1759244656308,-463.32210598,0.00019725,2]
[388574876,1759244656331,-1201.19,0.00019725,2]
[388574877,1759244656353,-622.78,0.00019725,2]
[388574878,1759244656376,-533.03,0.00019725,2]
[388574879,1759244656401,-500.0,0.00019725,2]
[388574880,1759244656424,-500.0,0.00019725,2]
[388574881,1759244656452,-500.0,0.00019725,2]
[388574882,1759244656478,-1660.69,0.00019725,2]
[388574883,1759244656503,-2231.18,0.00019725,2]
[388574884,1759244656529,-2870.5,0.00019725,2]
[388574885,1759244656558,-500.0,0.00019725,2]
[388574886,1759244656586,-500.0,0.00019725,2]
[388574887,1759244656610,-500.0,0.00019725,2]
[388574888,1759244656634,-468.12471754,0.00019725,2]
[388574889,1759244656658,-514.27,0.00019725,2]
[388574890,1759244656682,-510.04257056,0.00019725,2]
[388574891,1759244656706,-1168.74,0.00019725,2]
[388574892,1759244656729,-500.0,0.00019725,2]
[388574893,1759244656752,-500.0,0.00019725,2]
[388574894,1759244656774,-500.0,0.00019725,2]
[388574895,1759244656800,-468.27643267,0.00019725,2]
[388574896,1759244656824,-500.0,0.00019725,2]
[388574897,1759244656847,-500.0,0.00019725,2]
[388574898,1759244656871,-500.0,0.00019725,2]
[388574899,1759244656894,-500.0,0.00019725,2]
[388574900,1759244656919,-463.49525876,0.00019725,2]
[388574901,1759244656944,-500.0,0.00019725,2]
[388574902,1759244656970,-585.71,0.00019725,2]
[388574903,1759244656994,-500.0,0.00019725,2]
[388574904,1759244657018,-500.0,0.00019725,2]
[388574905,1759244657041,-503.71,0.00019725,2]
[388574906,1759244657066,-2474.75,0.00019725,2]
[388574907,1759244657089,-500.0,0.00019725,2]
[388574908,1759244657113,-500.0,0.00019725,2]
[388574909,1759244657137,-500.0,0.00019725,2]
[388574910,1759244657160,-455.33010514,0.00019725,2]
[388574911,1759244657186,-500.0,0.00019725,2]
[388574912,1759244657209,-500.0,0.00019725,2]
[388574913,1759244657232,-500.0,0.00019725,2]
[388574914,1759244657255,-1488.13,0.00019725,2]
[388574915,1759244657279,-942.64,0.00019725,2]
[388574916,1759244657302,-288.37006625,0.00019725,2]
[388574917,1759244657326,-500.0,0.00019725,2]
[388574918,1759244657350,-1658.8,0.00019725,2]
[388574919,1759244657375,-578.34,0.00019725,2]
[388574920,1759244657398,-500.0,0.00019725,2]
[388574921,1759244657421,-598.89,0.00019725,2]
[388574922,1759244657447,-500.0,0.00019725,2]
[388574923,1759244657471,-500.0,0.00019726,2]
[388574924,1759244657495,-314.35117175,0.00019726,2]
[388574925,1759244657518,-500.0,0.00019726,2]
[388574926,1759244657541,-500.0,0.00019726,2]
[388574927,1759244657564,-500.0,0.00019726,2]
[388574928,1759244657588,-500.0,0.00019726,2]
[388574929,1759244657612,-500.0,0.00019726,2]
[388574930,1759244657634,-500.0,0.00019726,2]
[388574931,1759244657657,-500.0,0.00019726,2]
[388574932,1759244657680,-500.0,0.00019726,2]
[388574933,1759244657703,-500.0,0.00019726,2]
[388574934,1759244657726,-500.0,0.00019726,2]
[388574935,1759244657750,-500.0,0.00019726,2]
[388574936,1759244657773,-500.0,0.00019726,2]
[388574937,1759244657796,-544.26,0.00019726,2]
[388574938,1759244657819,-500.0,0.00019726,2]
[388574939,1759244657842,-731.48,0.00019726,2]
[388574940,1759244657865,-460.0,0.00019726,2]
[388574941,1759244657888,-658.63,0.00019726,2]
[388574942,1759244657912,-1515.65,0.00019726,2]
[388574943,1759244657935,-500.0,0.00019726,2]
[388574944,1759244657959,-500.0,0.00019726,2]
[388574945,1759244657982,-500.0,0.00019726,2]
[388574946,1759244658006,-652.36,0.00019726,2]
[388574947,1759244658030,-731.2,0.00019726,2]
[388574948,1759244658053,-740.62,0.00019726,2]
[388574949,1759244658076,-500.0,0.00019726,2]
[388574950,1759244658099,-285.19583278,0.00019726,2]
[388574951,1759244658122,-834.81,0.00019726,2]
[388574952,1759244658145,-2266.48,0.00019726,2]
[388574953,1759244658167,-500.0,0.00019726,2]
[388574954,1759244658190,-537.383419,0.00019726,2]
[388574955,1759244658214,-500.0,0.00019726,2]
[388574956,1759244658236,-423.15484423,0.00019726,2]
[388574957,1759244658259,-522.16,0.00019726,2]
[388574958,1759244658282,-500.0,0.00019726,2]
[388574959,1759244658305,-500.0,0.00019726,2]
[388574960,1759244658328,-653.75,0.00019726,2]
[388574961,1759244658351,-500.0,0.00019726,2]
[388574962,1759244658373,-500.0,0.00019726,2]
[388574963,1759244658397,-500.0,0.00019726,2]
[388574964,1759244658420,-500.0,0.00019873,2]
[388574965,1759244658448,-461.47376216,0.00019873,2]
[388574966,1759244658470,-500.0,0.00019873,2]
[388574967,1759244658494,-500.0,0.00019873,2]
[388574968,1759244658518,-500.0,0.00019873,2]
[388574969,1759244658542,-500.0,0.00019873,2]
[388574970,1759244658565,-328.86,0.0001989,3]
[388574971,1759244658588,-164.43,0.0001989,3]
[388574972,1759244658613,-493.32,0.0001989,3]
[388574973,1759244658636,-160.3415537,0.00019899,2]
[388574974,1759244658661,-64116.39475639,0.000199,2]
[388574975,1759244658684,-510.38639232,0.00019973,2]
[388574976,1759244658707,-500.0,0.00019973,2]
[388574977,1759244658730,-500.68444282,0.00019973,2]
[388574978,1759244658753,-500.0,0.00019973,2]
[388574979,1759244658777,-440.01647922,0.00019973,2]
[388574980,1759244658800,-500.62206401,0.00019973,2]
[388574981,1759244658944,-500.0,0.00019973,2]
[388574982,1759244658967,-500.310663,0.00019973,2]
[388574983,1759244658992,-500.0,0.00019973,2]
[388574984,1759244659016,-500.0,0.00019973,2]
[388574985,1759244659040,-500.0,0.00019973,2]
[388574986,1759244659064,-500.0,0.00019973,2]
[388574987,1759244659088,-500.0,0.00019973,2]
[388574988,1759244659114,-500.0,0.00019973,2]
[388574989,1759244659138,-176.57779993,0.00019973,2]
[388574990,1759244659161,-500.0,0.00019973,2]
[388574991,1759244659185,-500.0,0.00019973,2]
[388574992,1759244659209,-500.0,0.00019973,2]
[388574993,1759244659232,-273.56574734,0.00019973,2]
[388574994,1759244659257,-17391.73616216,0.0001999,2]
[388574995,1759244659281,-500.0,0.00019998,2]
[388574996,1759244659304,-285.07591286,0.00019999,2]
[388574997,1759244659328,-500.0,0.00019999,2]
[388574998,1759244659353,-1930.27,0.00019999,2]
[388574999,1759244659376,-500.0,0.00019999,2]
[388575000,1759244659401,-152.11457898,0.00019999,2]
[388575001,1759244659426,-500.0,0.00019999,2]
[388575002,1759244659455,-500.0,0.00019999,2]
[388575003,1759244659479,-156.87806857,0.00019999,2]
[388575004,1759244659504,-633.81,0.00019999,2]
[388575005,1759244659529,-500.0,0.00019999,2]
[388575006,1759244659552,-500.0,0.00019999,2]
[388575007,1759244659578,-1729.81,0.00019999,2]
[388575008,1759244659604,-500.0,0.00019999,2]
[388575009,1759244659629,-500.0,0.00019999,2]
[388575010,1759244659654,-500.0,0.00019999,2]
[388575011,1759244659678,-500.0,0.00019999,2]
[388575012,1759244659704,-730.0,0.00019999,2]
[388575013,1759244659729,-500.0,0.00019999,2]
[388575014,1759244659754,-500.0,0.00019999,2]
[388575015,1759244659779,-1188.74,0.00019999,2]
[388575016,1759244659804,-679.82,0.00019999,2]
[388575017,1759244659830,-500.0,0.00019999,2]
[388575018,1759244659855,-500.0,0.00019999,2]
[388575019,1759244659880,-697.11,0.00019999,2]
[388575020,1759244659905,-457.83540356,0.00019999,2]
[388575021,1759244659930,-500.0,0.00019999,2]
[388575022,1759244659955,-500.0,0.00019999,2]
[388575023,1759244659979,-500.0,0.00019999,2]
[388575024,1759244660002,-442.77407882,0.00019999,2]
[388575025,1759244660028,-500.0,0.00019999,2]
[388575026,1759244660052,-1106.9,0.00019999,2]
[388575027,1759244660076,-500.0,0.00019999,2]
[388575028,1759244660101,-709.55,0.00019999,2]
[388575029,1759244660126,-500.0,0.00019999,2]
[388575030,1759244660151,-500.0,0.00019999,2]
[388575031,1759244660175,-500.0,0.00019999,2]
[388575032,1759244660199,-1321.17,0.00019999,2]
[388575033,1759244660226,-500.0,0.00019999,2]
[388575034,1759244660251,-592.5,0.00019999,2]
[388575035,1759244660276,-1735.68,0.00019999,2]
[388575036,1759244660300,-500.0,0.00019999,2]
[388575037,1759244660326,-500.0,0.00019999,2]
[388575038,1759244660350,-500.0,0.00019999,2]
[388575039,1759244660375,-500.0,0.00019999,2]
[388575040,1759244660399,-1201.19,0.00019999,2]
[388575041,1759244660425,-500.0,0.00019999,2]
[388575042,1759244660452,-622.78,0.00019999,2]
[388575043,1759244660475,-533.03,0.00019999,2]
[388575044,1759244660500,-500.0,0.00019999,2]
[388575045,1759244660527,-440.0,0.00019999,2]
[388575046,1759244660551,-500.0,0.00019999,2]
[388575047,1759244660577,-1660.69,0.00019999,2]
[388575048,1759244660603,-2231.18,0.00019999,2]
[388575049,1759244660629,-2870.5,0.00019999,2]
[388575050,1759244660654,-500.0,0.00019999,2]
[388575051,1759244660679,-699.68,0.00019999,2]
[388575052,1759244660705,-279.86645787,0.00019999,2]
[388575053,1759244660731,-1866.75,0.00019999,2]
[388575054,1759244660759,-500.0,0.00019999,2]
[388575055,1759244660783,-514.27,0.00019999,2]
[388575056,1759244660808,-1168.74,0.00019999,2]
[388575057,1759244660834,-500.0,0.00019999,2]
[388575058,1759244660857,-815.16,0.00019999,2]
[388575059,1759244660881,-500.0,0.00019999,2]
[388575060,1759244660904,-500.0,0.00019999,2]
[388575061,1759244660927,-258.21905919,0.00019999,2]
[388575062,1759244660951,-500.0,0.00019999,2]
[388575063,1759244660973,-500.0,0.00019999,2]
[388575064,1759244660998,-500.0,0.00019999,2]
[388575065,1759244661021,-500.0,0.00019999,2]
[388575066,1759244661044,-585.71,0.00019999,2]
[388575067,1759244661068,-362.21779819,0.00019999,2]
[388575068,1759244661092,-865.78,0.00019999,2]
[388575069,1759244661116,-443.10366237,0.00019999,2]
[388575070,1759244661140,-503.71,0.00019999,2]
[388575071,1759244661165,-2094.7,0.00019999,2]
[388575072,1759244661189,-2474.75,0.00019999,2]
[388575073,1759244661216,-500.0,0.00019999,2]
[388575074,1759244661241,-500.0,0.00019999,2]
[388575075,1759244661266,-500.0,0.00019999,2]
[388575076,1759244661290,-448.54258119,0.00019999,2]
[388575077,1759244661314,-500.0,0.00019999,2]
[388575078,1759244661340,-500.0,0.00019999,2]
[388575079,1759244661364,-1488.13,0.00019999,2]
[388575080,1759244661388,-942.64,0.00019999,2]
[388575081,1759244661412,-500.0,0.00019999,2]
[388575082,1759244661442,-500.0,0.00019999,2]
[388575083,1759244661469,-1658.8,0.00019999,2]
[388575084,1759244661494,-578.34,0.00019999,2]
[388575085,1759244661518,-440.0,0.00019999,2]
[388575086,1759244661542,-970.84,0.00019999,2]
[388575087,1759244661566,-598.89,0.00019999,2]
[388575088,1759244661591,-500.0,0.00019999,2]
[388575089,1759244661616,-500.0,0.0002,2]
[388575090,1759244661640,-500.0,0.0002,2]
[388575091,1759244661666,-500.0,0.0002,2]
[388575092,1759244661690,-500.0,0.0002,2]
[388575093,1759244661715,-500.0,0.0002,2]
[388575094,1759244661853,-500.0,0.0002,2]
[388575095,1759244661878,-500.0,0.0002,2]
[388575096,1759244661903,-500.0,0.0002,2]
[388575097,1759244661928,-500.0,0.0002,2]
[388575098,1759244661954,-198.01441384,0.0002,2]
[388575099,1759244661979,-500.0,0.0002,2]
[388575100,1759244662004,-500.0,0.0002,2]
[388575101,1759244662028,-500.0,0.0002,2]
[388575102,1759244662052,-544.26,0.0002,2]
[388575103,1759244662076,-500.0,0.0002,2]
[388575104,1759244662101,-731.48,0.0002,2]
[388575105,1759244662126,-658.63,0.0002,2]
[388575106,1759244662150,-1515.65,0.0002,2]
[388575107,1759244662175,-500.0,0.0002,2]
[388575108,1759244662199,-500.0,0.0002,2]
[388575109,1759244662224,-500.0,0.0002,2]
[388575110,1759244662249,-652.36,0.0002,2]
[388575111,1759244662272,-500.0,0.0002,2]
[388575112,1759244662297,-731.2,0.0002,2]
[388575113,1759244662322,-611.79456626,0.0002,2]
[388575114,1759244662955,480.0,0.00019178,2]
[388575115,1759244663254,500.0,0.00019178,2]
[388575118,1759244671067,170.0,0.00018137,3]
[388575120,1759244703250,188.81164278,0.00033562,60]
[388575122,1759244725769,483.77828543,0.00019178,2]
[388575123,1759244756043,500.0,0.00019178,2]
[388575124,1759244773040,500.0,0.00019178,2]
[388575125,1759244777646,500.0,0.00019178,2]
[388575126,1759244803238,529.15,0.00019178,2]
[388575146,1759244820954,615.54,0.00019178,2]
[388575147,1759244829244,500.0,0.00019178,2]
[388575150,1759244899028,500.0,0.00019178,2]
[388575152,1759244942395,483.41748662,0.00019178,2]
[388575153,1759244968477,619.46513,0.00033562,60]
[388575154,1759244976065,156.23195952,0.00033562,120]
[388575155,1759244976438,164.0709105,0.00033562,60]
[388575156,1759244984811,157.0,0.00018137,3]
[388575157,1759245007862,160.0,0.00033659,60]
[388575158,1759245009881,500.0,0.00019178,2]
[388575159,1759245021629,500.0,0.00019178,2]
[388575160,1759245028155,154.99472,0.00033659,60]
[388575216,1759245032848,856.35,0.00019178,2]
[388575591,1759245038454,-293.39546044,0.00019449,2]
[388575592,1759245038896,-6.60453956,0.00019449,2]
[388575593,1759245038906,-300.0,0.00019449,2]
[388575594,1759245038915,-1200.0,0.00019449,2]
[388575595,1759245038925,-500.0,0.0001945,2]
[388575596,1759245038935,-500.0,0.0001945,2]
[388575597,1759245038945,-2165.41,0.0001945,2]
[388575598,1759245038956,-1302.12,0.0001945,2]
[388575599,1759245038966,-506.04,0.0001945,2]
[388575600,1759245038976,-524.03,0.0001945,2]
[388575601,1759245038988,-500.0,0.0001945,2]
[388575602,1759245038998,-676.76,0.0001945,2]
[388575603,1759245039008,-225.6258921,0.0001945,2]
[388575604,1759245039019,-435.11659823,0.0001945,2]
[388575703,1759245040708,-64.88340177,0.0001945,2]
[388575705,1759245040718,-422.3657596,0.0001945,2]
[388575707,1759245040733,-500.0,0.0001945,2]
[388575709,1759245040743,-500.0,0.0001945,2]
[388575711,1759245040752,-500.0,0.0001945,2]
[388575713,1759245040762,-638.75,0.0001945,2]
[388575715,1759245040772,-227.60085777,0.0001945,2]
[388575721,1759245040824,-272.39914223,0.0001945,2]
[388575723,1759245040834,-1040.15,0.0001945,2]
[388575724,1759245040843,-500.0,0.0001945,2]
[388575726,1759245040853,-847.46,0.0001945,2]
[388575728,1759245040862,-840.66,0.0001945,2]
[388575730,1759245040871,-1156.03,0.0001945,2]
[388575732,1759245040881,-968.54,0.0001945,2]
[388575734,1759245040891,-748.47085777,0.0001945,2]
[388576119,1759245047489,-770.24914223,0.0001945,2]
[388576121,1759245047498,-500.0,0.0001945,2]
[388576123,1759245047508,-1453.1,0.0001945,2]
[388576125,1759245047517,-544.93,0.0001945,2]
[388576126,1759245047527,-518.44,0.0001945,2]
[388576128,1759245047536,-500.0,0.0001945,2]
[388576130,1759245047547,-483.16675203,0.0001945,2]
[388576132,1759245047556,-2303.03,0.0001945,2]
[388576134,1759245047565,-500.0,0.00019451,2]
[388576136,1759245047575,-500.0,0.00019451,2]
[388576138,1759245047584,-483.1599813,0.00019451,2]
[388576140,1759245047594,-500.0,0.00019451,2]
[388576142,1759245047603,-500.0,0.00019451,2]
[388576144,1759245047613,-500.0,0.00019451,2]
[388576146,1759245047622,-500.0,0.00019451,2]
[388576148,1759245047631,-500.0,0.00019451,2]
[388576150,1759245047640,-654.09,0.00019451,2]
[388576152,1759245047650,-355.19816573,0.00019451,2]
[388576154,1759245047662,-500.0,0.00019451,2]
[388576156,1759245047676,-345.51264996,0.00019451,2]
[388576158,1759245047685,-2511.69,0.00019451,2]
[388576160,1759245047694,-500.0,0.00019451,2]
[388576162,1759245047704,-500.0,0.00019451,2]
[388576164,1759245047713,-500.0,0.00019451,2]
[388576166,1759245047723,-500.0,0.00019451,2]
[388576168,1759245047732,-500.0,0.00019451,2]
[388576170,1759245047742,-1342.87,0.00019451,2]
[388576172,1759245047751,-500.0,0.00019451,2]
[388576174,1759245047760,-601.28708496,0.00019451,2]
[388576175,1759245047769,-2022.65,0.00019451,2]
[388576177,1759245047779,-500.0,0.00019451,2]
[388576179,1759245047788,-483.00738678,0.00019451,2]
[388576181,1759245047798,-500.0,0.00019451,2]
[388576183,1759245047808,-500.0,0.00019451,2]
[388576185,1759245047818,-500.0,0.00019451,2]
[388576187,1759245047828,-500.0,0.00019451,2]
[388576189,1759245047837,-500.0,0.00019451,2]
[388576191,1759245047846,-500.0,0.00019451,2]
[388576193,1759245047855,-824.81,0.00019451,2]
[388576195,1759245047864,-500.0,0.00019451,2]
[388576197,1759245047874,-500.0,0.00019451,2]
[388576199,1759245047883,-500.0,0.00019451,2]
[388576201,1759245047892,-500.0,0.00019451,2]
[388576203,1759245047901,-500.0,0.00019451,2]
[388576205,1759245047910,-747.27,0.00019451,2]
[388576207,1759245047919,-463.41566748,0.00019451,2]
[388576209,1759245047928,-754.71,0.00019451,2]
[388576211,1759245047937,-500.0,0.00019451,2]
[388576213,1759245047946,-473.26206737,0.00019451,2]
[388576215,1759245047956,-500.0,0.00019451,2]
[388576216,1759245047965,-500.0,0.00019451,2]
[388576218,1759245047974,-670.53,0.00019451,2]
[388576220,1759245047983,-1983.65,0.00019451,2]
[388576222,1759245047993,-803.43,0.00019451,2]
[388576225,1759245048004,-688.46,0.00019451,2]
[388576227,1759245048014,-538.24,0.00019451,2]
[388576229,1759245048023,-679.98,0.00019451,2]
[388576231,1759245048033,-479.95010967,0.00019451,2]
[388576232,1759245048044,-500.0,0.00019451,2]
[388576234,1759245048053,-589.27,0.00019451,2]
[388576236,1759245048065,-500.0,0.00019451,2]
[388576238,1759245048074,-535.7,0.00019451,2]
[388576240,1759245048083,-1820.42,0.00019451,2]
[388576242,1759245048093,-2007.42,0.00019451,2]
[388576244,1759245048102,-793.47,0.00019451,2]
[388576246,1759245048111,-2768.25,0.00019451,2]
[388576248,1759245048121,-1506.48,0.00019451,2]
[388576250,1759245048130,-500.0,0.00019451,2]
[388576252,1759245048139,-1157.75,0.00019451,2]
[388576254,1759245048148,-500.0,0.00019451,2]
[388576256,1759245048157,-629.43,0.00019451,2]
[388576258,1759245048166,-500.0,0.00019451,2]
[388576260,1759245048176,-1285.01,0.00019451,2]
[388576262,1759245048185,-501.17,0.00019451,2]
[388576264,1759245048193,-500.0,0.00019451,2]
[388576266,1759245048202,-500.0,0.00019451,2]
[388576268,1759245048211,-500.0,0.00019451,2]
[388576280,1759245048323,-482.74676227,0.00019451,2]
[388576283,1759245048334,-482.21284992,0.00019451,2]
[388576285,1759245048344,-500.0,0.00019451,2]
[388576287,1759245048353,-500.0,0.00019451,2]
[388576288,1759245048362,-500.0,0.00019451,2]
[388576290,1759245048371,-733.74,0.00019451,2]
[388576292,1759245048380,-500.0,0.00019451,2]
[388576294,1759245048389,-1788.96,0.00019451,2]
[388576296,1759245048399,-482.14852272,0.00019451,2]
[388576299,1759245048409,-500.0,0.00019451,2]
[388576301,1759245048418,-1345.69,0.00019451,2]
[388576302,1759245048427,-1291.55,0.00019451,2]
[388576304,1759245048437,-500.0,0.00019451,2]
[388576306,1759245048447,-482.66145965,0.00019451,2]
[388576308,1759245048456,-500.0,0.00019451,2]
[388576310,1759245048465,-1166.68,0.00019451,2]
[388576312,1759245048475,-775.21,0.00019451,2]
[388576314,1759245048484,-500.0,0.00019451,2]
[388576316,1759245048494,-1602.97,0.00019451,2]
[388576318,1759245048504,-832.21,0.00019451,2]
[388576320,1759245048513,-805.26,0.00019451,2]
[388576322,1759245048522,-829.71,0.00019451,2]
[388576324,1759245048532,-468.27562816,0.00019451,2]
[388576326,1759245048541,-500.0,0.00019451,2]
[388576328,1759245048552,-500.0,0.00019451,2]
[388576331,1759245048563,-500.0,0.00019451,2]
[388576332,1759245048572,-500.0,0.00019451,2]
[388576334,1759245048580,-500.0,0.00019451,2]
[388576336,1759245048589,-480.0,0.00019451,2]
[388576338,1759245048599,-481.82423622,0.00019451,2]
[388576340,1759245048608,-500.0,0.00019452,2]
[388576342,1759245048618,-500.0,0.00019452,2]
[388576344,1759245048628,-500.0,0.00019452,2]
[388576347,1759245048638,-500.0,0.00019452,2]
[388576348,1759245048647,-529.15,0.00019452,2]
[388576350,1759245048656,-615.54,0.00019452,2]
[388576353,1759245048668,-500.0,0.00019452,2]
[388576354,1759245048679,-500.0,0.00019452,2]
[388576357,1759245048689,-500.0,0.00019452,2]
[388576359,1759245048700,-500.0,0.00019452,2]
[388576361,1759245048710,-856.35,0.00019452,2]
[388576362,1759245048720,-500.0,0.00019724,2]
[388576364,1759245048730,-806.91,0.00019724,2]
[388576366,1759245048740,-369.01955062,0.00019724,2]
[388576369,1759245048752,-2165.41,0.00019724,2]
[388576370,1759245048762,-1302.12,0.00019724,2]
[388576372,1759245048771,-506.04,0.00019724,2]
[388576374,1759245048781,-524.03,0.00019724,2]
[388576376,1759245048790,-512.5,0.00019724,2]
[388576378,1759245048801,-500.0,0.00019724,2]
[388576380,1759245048811,-676.76,0.00019724,2]
[388576382,1759245048820,-500.0,0.00019724,2]
[388576384,1759245048829,-638.75,0.00019724,2]
[388576386,1759245048839,-1451.45,0.00019724,2]
[388576388,1759245048848,-500.0,0.00019724,2]
[388576390,1759245048858,-500.0,0.00019724,2]
[388576392,1759245048867,-500.0,0.00019724,2]
[388576394,1759245048876,-1040.15,0.00019724,2]
[388576396,1759245048886,-500.0,0.00019724,2]
[388576398,1759245048895,-847.46,0.00019724,2]
[388576401,1759245048906,-840.66,0.00019724,2]
[388576402,1759245048915,-1156.03,0.00019724,2]
[388576404,1759245048924,-968.54,0.00019724,2]
[388576406,1759245048934,-1518.72,0.00019724,2]
[388576409,1759245048943,-500.0,0.00019724,2]
[388576410,1759245048953,-1453.1,0.00019724,2]
[388576412,1759245048962,-544.93,0.00019724,2]
[388576414,1759245048971,-518.44,0.00019724,2]
[388576416,1759245048981,-1051.04,0.00019724,2]
[388576418,1759245048991,-500.0,0.00019724,2]
[388576420,1759245049000,-2303.03,0.00019724,2]
[388576422,1759245049010,-500.0,0.00019725,2]
[388576425,1759245049020,-500.0,0.00019725,2]
[388576427,1759245049030,-500.0,0.00019725,2]
[388576428,1759245049039,-392.83934242,0.00019725,2]
[388576431,1759245049049,-500.0,0.00019725,2]
[388576432,1759245049059,-500.0,0.00019725,2]
[388576435,1759245049069,-397.42659025,0.00019725,2]
[388576437,1759245049078,-654.09,0.00019725,2]
[388576438,1759245049087,-470.74655887,0.00019725,2]
[388576440,1759245049096,-2511.69,0.00019725,2]
[388576442,1759245049106,-460.0,0.00019725,2]
[388576444,1759245049115,-640.07029221,0.00019725,2]
[388576446,1759245049125,-406.24077444,0.00019725,2]
[388576448,1759245049135,-500.0,0.00019725,2]
[388576450,1759245049144,-467.28133958,0.00019725,2]
[388576451,1759245049154,-1342.87,0.00019725,2]
[388576452,1759245049163,-467.29629242,0.00019725,2]
[388576453,1759245049172,-2022.65,0.00019725,2]
[388576455,1759245049182,-500.0,0.00019725,2]
[388576457,1759245049191,-500.0,0.00019725,2]
[388576459,1759245049201,-500.0,0.00019725,2]
[388576461,1759245049210,-500.0,0.00019725,2]
[388576463,1759245049220,-500.0,0.00019725,2]
[388576465,1759245049229,-500.0,0.00019725,2]
[388576466,1759245049238,-500.0,0.00019725,2]
[388576467,1759245049248,-824.81,0.00019725,2]
[388576468,1759245049257,-500.0,0.00019725,2]